bitfinex/quotes_BTCUSD_20260125
["timestamp","ask_amount","ask_price","bid_price","bid_amount"]
[1769365408876,0.01140575,87675.0,87656.0,1.25970301]
[1769365409080,0.01140562,87676.0,87656.0,1.25970301]
[1769365409283,0.18426534,87675.0,87656.0,1.25970301]
[1769365409487,0.11405698,87674.0,87656.0,1.25970301]
[1769365409692,0.11405698,87673.0,87656.0,1.25970301]
[1769365409924,0.01140654,87669.0,87656.0,1.25970301]
[1769365410129,0.12546365,87668.0,87656.0,1.25970301]
[1769365410333,0.11405698,87667.0,87656.0,1.25970301]
[1769365410533,0.11405698,87666.0,87656.0,1.25970301]
[1769365410832,0.11405698,87665.0,87656.0,1.25970301]
[1769365411037,0.01140602,87673.0,87657.0,0.18662081]
[1769365411265,0.01140628,87671.0,87661.0,0.18662081]
[1769365411467,0.01140628,87671.0,87663.0,0.18662081]
[1769365411794,0.01140641,87670.0,87663.0,0.18662081]
[1769365411968,0.01140615,87672.0,87664.0,1.0730822]
[1769365412599,0.01151942,87672.0,87664.0,1.0730822]
[1769365412807,0.01140628,87671.0,87664.0,1.0730822]
[1769365412960,0.01151942,87672.0,87664.0,1.0730822]
[1769365413168,0.00011327,87672.0,87664.0,1.0730822]
[1769365413371,0.01140628,87671.0,87663.0,0.18662081]
[1769365413791,0.01151942,87672.0,87663.0,0.18662081]
[1769365414353,0.00011327,87672.0,87663.0,0.18662081]
[1769365414526,0.00011327,87672.0,87663.0,0.07314713]
[1769365415451,0.00011327,87672.0,87661.0,1.15553777]
[1769365416003,0.01151942,87672.0,87661.0,1.15553777]
[1769365416227,0.01140628,87671.0,87661.0,1.15553777]
[1769365416433,0.00011327,87672.0,87658.0,0.187917]
[1769365416636,0.22813039,87670.0,87651.0,1.34345477]
[1769365416805,0.01140745,87662.0,87651.0,1.34345477]
[1769365417004,0.01140784,87659.0,87648.0,0.17528]
[1769365417209,0.18553688,87657.0,87648.0,0.17528]
[1769365417408,0.01140784,87659.0,87648.0,0.17528]
[1769365417618,0.2311672,87661.0,87648.0,0.17528]
[1769365417818,0.17412878,87661.0,87648.0,0.17528]
[1769365418435,0.18553636,87661.0,87648.0,0.17528]
[1769365418943,0.17412878,87661.0,87648.0,0.17528]
[1769365419145,0.18553636,87661.0,87648.0,0.17528]
[1769365419553,0.01140706,87665.0,87648.0,0.17528]
[1769365419734,0.0684437,87664.0,87648.0,0.17528]
[1769365419938,0.01140797,87658.0,87648.0,0.17528]
[1769365420137,0.01140784,87659.0,87648.0,0.17528]
[1769365420472,0.0114081,87657.0,87648.0,0.17528]
[1769365420649,0.01140823,87656.0,87648.0,0.17528]
[1769365421003,0.01140836,87655.0,87648.0,0.17528]
[1769365421197,0.01140836,87655.0,87642.0,0.04564]
[1769365421198,0.01,87648.0,87642.0,0.04564]
[1769365421586,0.05704295,87654.0,87642.0,0.04564]
[1769365421817,0.01140875,87652.0,87642.0,0.04564]
[1769365422020,0.01140862,87653.0,87642.0,0.04564]
[1769365422224,0.17412878,87655.0,87642.0,0.04564]
[1769365422438,0.0114081,87657.0,87642.0,0.04564]
[1769365422818,0.23955177,87664.0,87644.0,0.187917]
[1769365422819,0.01140719,87664.0,87644.0,0.187917]
[1769365423022,0.01140758,87661.0,87647.0,1.15553777]
[1769365423230,0.12545647,87660.0,87648.0,0.187917]
[1769365423437,0.0114081,87657.0,87648.0,0.187917]
[1769365423644,0.01140875,87652.0,87642.0,0.04564]
[1769365423852,0.01140953,87646.0,87634.0,0.0002]
[1769365424077,0.11404876,87645.0,87634.0,0.0002]
[1769365424280,0.11404876,87644.0,87634.0,0.0002]
[1769365424487,0.11404876,87643.0,87634.0,0.0002]
[1769365424696,0.11404876,87642.0,87634.0,0.0002]
[1769365424899,0.11404876,87641.0,87634.0,0.0002]
[1769365425104,0.11404876,87640.0,87635.0,1.15553777]
[1769365425313,0.17412878,87653.0,87636.0,1.15553777]
[1769365425518,0.11402319,87652.0,87637.0,1.34345477]
[1769365425721,0.12543207,87651.0,87638.0,0.187917]
[1769365425922,0.11402319,87650.0,87638.0,0.187917]
[1769365426126,0.11402319,87649.0,87635.0,0.0001417]
[1769365426329,0.11402319,87648.0,87635.0,0.0001417]
[1769365426531,0.11402319,87647.0,87635.0,0.0001417]
[1769365426740,0.11402319,87646.0,87635.0,0.0001417]
[1769365426872,0.11402319,87645.0,87635.0,0.0001417]
[1769365427084,0.11402319,87644.0,87635.0,0.0001417]
[1769365427284,0.11402319,87643.0,87635.0,0.0001417]
[1769365427486,0.11402319,87642.0,87635.0,0.0001417]
[1769365427696,0.11402319,87641.0,87635.0,0.0001417]
[1769365427906,0.11402319,87640.0,87635.0,0.1880587]
[1769365428111,0.01140901,87650.0,87635.0,0.1880587]
[1769365428340,0.24258216,87651.0,87635.0,0.1880587]
[1769365428341,0.11397908,87649.0,87635.0,0.1880587]
[1769365428588,0.11397908,87648.0,87635.0,0.1880587]
[1769365428785,0.17412878,87651.0,87635.0,0.1880587]
[1769365428786,0.11397908,87647.0,87635.0,0.1880587]
[1769365429127,0.17412878,87651.0,87635.0,0.1880587]
[1769365429128,0.11397908,87646.0,87635.0,1.34359647]
[1769365429331,0.11397908,87645.0,87636.0,1.15553777]
[1769365429534,0.11397908,87645.0,87635.0,0.0001417]
[1769365429535,0.11397908,87644.0,87639.0,0.187917]
[1769365429747,0.321,87666.0,87636.0,1.15553777]
[1769365429950,0.321,87666.0,87635.0,0.0001417]
[1769365429951,0.01140706,87665.0,87639.0,1.15553777]
[1769365430161,0.321,87666.0,87643.0,1.15553777]
[1769365430373,0.321,87666.0,87646.0,0.187917]
[1769365430584,0.321,87666.0,87654.0,0.187917]
[1769365430792,0.321,87666.0,87647.0,0.17532]
[1769365430793,0.321,87666.0,87657.0,1.15553777]
[1769365430994,0.01140549,87677.0,87661.0,1.15553777]
[1769365431170,0.01140562,87676.0,87661.0,1.34345477]
[1769365431377,0.01140562,87676.0,87661.0,0.187917]
[1769365431530,1.04873004,87676.0,87661.0,0.187917]
[1769365431736,1.03732442,87676.0,87661.0,0.187917]
[1769365431938,0.01140589,87674.0,87661.0,0.187917]
[1769365432142,1.03732442,87672.0,87661.0,0.187917]
[1769365432527,0.01,87661.0,87648.0,0.187917]
[1769365433021,0.01,87661.0,87650.0,0.187917]
[1769365433220,1.03732442,87666.0,87651.0,0.19008477]
[1769365433372,0.01140654,87669.0,87652.0,0.187917]
[1769365434057,0.01140667,87668.0,87652.0,0.187917]
[1769365434238,0.01140693,87666.0,87652.0,0.187917]
[1769365434445,1.2114532,87671.0,87652.0,0.187917]
[1769365434775,1.03732442,87669.0,87653.0,0.187917]
[1769365437578,1.03732442,87669.0,87603.0,0.45660256]
[1769365437579,1.1489272,87669.0,87603.0,0.45660256]
[1769365437797,1.03732442,87652.0,87633.0,0.187917]
[1769365438015,1.03732442,87642.0,87625.0,0.1884722]
[1769365438219,0.01140966,87645.0,87625.0,0.1884722]
[1769365438430,1.03732442,87643.0,87625.0,0.1884722]
[1769365438625,1.04873434,87643.0,87625.0,0.1884722]
[1769365438812,1.03732442,87643.0,87625.0,0.1884722]
[1769365439446,0.01141018,87641.0,87625.0,0.1884722]
[1769365439623,1.03698614,87637.0,87625.0,0.0005552]
[1769365439826,1.03709935,87637.0,87625.0,0.0005552]
[1769365440437,1.03709935,87637.0,87609.0,0.233557]
[1769365440438,0.0005552,87625.0,87609.0,0.233557]
[1769365440641,1.08449358,87627.0,87609.0,0.233557]
[1769365441608,1.08449358,87627.0,87610.0,0.187917]
[1769365442911,1.08449358,87627.0,87608.0,0.0002775]
[1769365442912,1.08449358,87623.0,87608.0,0.0002775]
[1769365443065,0.19270604,87619.0,87601.0,0.187917]
[1769365443273,0.09114623,87641.0,87619.0,0.01141304]
[1769365443472,0.0002775,87649.0,87627.0,1.07952077]
[1769365443682,0.0002775,87649.0,87630.0,0.19192827]
[1769365444026,0.01140979,87644.0,87627.0,0.00011321]
[1769365444245,1.08384108,87641.0,87627.0,0.00011321]
[1769365444445,1.08384108,87641.0,87616.0,0.23756827]
[1769365444446,0.19270604,87635.0,87616.0,0.23756827]
[1769365444654,1.08384108,87632.0,87616.0,0.23756827]
[1769365444855,1.08384108,87630.0,87616.0,0.04564]
[1769365445065,1.27654712,87630.0,87616.0,0.04564]
[1769365445546,0.19270604,87626.0,87597.0,0.20334418]
[1769365445686,0.19270604,87626.0,87599.0,0.19192827]
[1769365445687,1.08384108,87620.0,87599.0,0.19192827]
[1769365445890,0.01141174,87629.0,87596.0,1.07952077]
[1769365446090,1.08384108,87628.0,87601.0,0.19192827]
[1769365446334,0.19270604,87640.0,87613.0,0.19192827]
[1769365446585,0.19270604,87640.0,87619.0,0.01141304]
[1769365446814,0.17532,87647.0,87624.0,0.19192827]
[1769365447017,0.17532,87647.0,87627.0,0.19192827]
[1769365447254,0.01141031,87640.0,87600.0,0.01141552]
[1769365447443,1.27654712,87626.0,87599.0,0.20334392]
[1769365447654,1.08384108,87624.0,87601.0,0.19192827]
[1769365447802,1.08384108,87621.0,87601.0,0.19192827]
[1769365448617,0.85378881,87621.0,87601.0,0.19192827]
[1769365448855,0.85378881,87621.0,87603.0,1.07952077]
[1769365449225,0.20411856,87623.0,87604.0,0.19192827]
[1769365450234,0.19270604,87623.0,87604.0,0.19192827]
[1769365451673,0.19270604,87621.0,87604.0,0.19192827]
[1769365452071,0.19270604,87621.0,87598.0,0.19192827]
[1769365452072,0.01141291,87620.0,87598.0,0.19192827]
[1769365452261,0.20411921,87618.0,87598.0,0.19192827]
[1769365452655,0.19270604,87618.0,87598.0,0.19192827]
[1769365453650,0.01141239,87624.0,87602.0,0.19192827]
[1769365453850,0.01141304,87619.0,87603.0,0.19192827]
[1769365454108,0.19270604,87618.0,87596.0,1.07952077]
[1769365454231,0.19270604,87618.0,87597.0,0.19192827]
[1769365454439,0.19270604,87618.0,87599.0,1.07952077]
[1769365454649,0.01141265,87622.0,87601.0,0.19192827]
[1769365454895,0.20411869,87622.0,87601.0,0.19192827]
[1769365455087,0.20411869,87622.0,87602.0,0.19067761]
[1769365455088,0.19270604,87622.0,87602.0,0.19067761]
[1769365455524,0.19270604,87622.0,87603.0,0.19067761]
[1769365455753,0.20411869,87622.0,87603.0,0.19067761]
[1769365456260,0.01141317,87618.0,87603.0,0.19067761]
[1769365456461,0.01141331,87617.0,87603.0,0.19067761]
[1769365456584,0.01141448,87608.0,87592.0,0.19067761]
[1769365456798,0.01141435,87609.0,87592.0,0.19067761]
[1769365457009,0.19897518,87608.0,87591.0,0.0002775]
[1769365457210,0.19897518,87606.0,87591.0,0.0002775]
[1769365457418,0.21039005,87605.0,87591.0,0.0002775]
[1769365457624,0.011415,87604.0,87591.0,0.0002775]
[1769365457831,0.21039005,87605.0,87591.0,0.00075007]
[1769365458051,0.19897518,87605.0,87591.0,0.00075007]
[1769365458469,0.01141448,87608.0,87591.0,0.00075007]
[1769365458470,0.01141461,87607.0,87591.0,0.00075007]
[1769365458675,0.01141448,87608.0,87591.0,1.12776992]
[1769365458878,0.01141435,87609.0,87591.0,1.12776992]
[1769365459090,0.01141448,87608.0,87591.0,1.12776992]
[1769365459299,0.01141448,87608.0,87591.0,0.00075007]
[1769365459300,0.19897518,87608.0,87591.0,0.00075007]
[1769365459715,0.19897518,87608.0,87592.0,1.31769746]
[1769365460358,0.19897518,87608.0,87592.0,1.12701985]
[1769365460576,0.19897518,87608.0,87593.0,0.19067761]
[1769365460984,0.01141344,87616.0,87593.0,0.19067761]
[1769365461188,0.11347548,87615.0,87597.0,0.19067761]
[1769365461539,0.11347548,87614.0,87601.0,0.19067761]
[1769365461720,0.01141278,87621.0,87592.0,0.01141656]
[1769365461721,0.11347548,87613.0,87603.0,0.19067761]
[1769365461935,0.01141122,87633.0,87603.0,1.12701985]
[1769365462134,0.31246365,87626.0,87606.0,0.19067761]
[1769365462336,0.11348847,87625.0,87608.0,1.12701985]
[1769365462537,0.11348847,87625.0,87608.0,1.31769746]
[1769365463245,0.11348847,87625.0,87602.0,0.01141526]
[1769365463246,0.11348847,87625.0,87610.0,1.12701985]
[1769365463458,0.19897518,87635.0,87614.0,1.12701985]
[1769365463662,0.09114623,87638.0,87607.0,0.01141461]
[1769365463663,0.11355688,87634.0,87618.0,1.12701985]
[1769365463884,0.01141057,87638.0,87621.0,0.19067761]
[1769365463885,0.11355688,87633.0,87621.0,0.19067761]
[1769365464091,0.12496758,87637.0,87621.0,0.19067761]
[1769365464329,0.06846296,87639.0,87621.0,0.19067761]
[1769365464330,0.11359866,87636.0,87621.0,0.19067761]
[1769365464528,0.11359866,87635.0,87621.0,0.19067761]
[1769365464756,0.11359866,87634.0,87622.0,1.12701985]
[1769365464959,0.11359866,87633.0,87623.0,0.19067761]
[1769365465164,0.11359866,87632.0,87623.0,0.19067761]
[1769365465393,0.11359866,87632.0,87608.0,0.01141448]
[1769365465394,0.00594869,87647.0,87625.0,0.19067761]
[1769365465633,0.00594869,87647.0,87628.0,1.12701985]
[1769365465844,0.0002775,87649.0,87631.0,0.19067761]
[1769365466048,0.0002775,87649.0,87635.0,0.19067761]
[1769365466584,0.0002775,87649.0,87625.0,0.12801564]
[1769365466585,0.0002775,87649.0,87641.0,0.12787359]
[1769365466807,0.01168443,87666.0,87645.0,0.19067761]
[1769365466808,0.0002775,87666.0,87645.0,0.19067761]
[1769365467110,0.0002775,87666.0,87649.0,0.19067761]
[1769365467282,0.0002775,87666.0,87650.0,1.31769746]
[1769365467694,0.0002775,87666.0,87652.0,1.12701985]
[1769365467899,0.0002775,87666.0,87655.0,0.19067761]
[1769365468104,0.0002598,87666.0,87655.0,0.19067761]
[1769365468963,0.0004019,87666.0,87655.0,0.19067761]
[1769365470420,0.01,87655.0,87641.0,0.17536]
[1769365470669,0.01,87655.0,87644.0,0.19067761]
[1769365470869,0.0004019,87666.0,87647.0,1.12701985]
[1769365471075,0.0004019,87666.0,87643.0,0.01140992]
[1769365471076,0.0004019,87666.0,87650.0,0.19067761]
[1769365471237,0.0004019,87666.0,87651.0,0.19067761]
[1769365471431,0.0004019,87666.0,87642.0,0.12787359]
[1769365471642,0.0004019,87666.0,87646.0,0.19067761]
[1769365471845,0.0004019,87666.0,87646.0,1.12701985]
[1769365472046,0.0004019,87666.0,87647.0,0.19067761]
[1769365472451,0.19897518,87663.0,87647.0,0.19067761]
[1769365472674,0.19897518,87662.0,87643.0,0.17532]
[1769365473077,0.19897518,87662.0,87643.0,0.36358606]
[1769365473279,0.0004019,87666.0,87643.0,0.36358606]
[1769365473280,0.0002598,87663.0,87645.0,0.18826606]
[1769365473514,0.0002598,87663.0,87648.0,1.09796918]
[1769365473651,0.02958758,87675.0,87651.0,0.18826606]
[1769365473847,0.02958758,87675.0,87654.0,1.09796918]
[1769365474064,0.04099333,87675.0,87655.0,0.18826606]
[1769365474475,0.02958758,87675.0,87655.0,0.18826606]
[1769365476073,0.02958758,87675.0,87656.0,0.18826606]
[1769365476273,0.02958758,87675.0,87658.0,0.18826606]
[1769365476553,0.0003183,87682.0,87658.0,0.18826606]
[1769365476758,0.18979076,87679.0,87658.0,0.18826606]
[1769365478085,0.01140536,87678.0,87658.0,0.18826606]
[1769365478297,0.19115148,87678.0,87658.0,0.18826606]
[1769365478932,0.19115148,87678.0,87651.0,0.0001421]
[1769365478933,0.01140654,87669.0,87651.0,0.0001421]
[1769365479109,0.01140693,87666.0,87651.0,0.0001421]
[1769365479309,0.19115148,87665.0,87651.0,0.0001421]
[1769365481737,0.18947324,87665.0,87651.0,0.0001421]
[1769365482639,0.01140745,87662.0,87651.0,0.0001421]
[1769365482846,0.3735979,87670.0,87601.0,0.70281175]
[1769365482847,1.08735225,87651.0,87631.0,0.18826606]
[1769365483054,0.19115148,87650.0,87631.0,0.18826606]
[1769365483260,0.0001421,87651.0,87626.0,0.04564]
[1769365483261,0.0001421,87651.0,87634.0,0.01141109]
[1769365483439,0.20255854,87665.0,87640.0,0.18826606]
[1769365483639,0.19115148,87665.0,87640.0,0.18826606]
[1769365484378,0.19115148,87663.0,87640.0,0.18826606]
[1769365484589,0.19115148,87672.0,87644.0,0.18826606]
[1769365484793,0.19115148,87672.0,87643.0,0.01140992]
[1769365484794,0.11333338,87671.0,87647.0,1.09796918]
[1769365485017,0.19115148,87670.0,87648.0,0.18810874]
[1769365485224,0.01140589,87674.0,87648.0,0.18810874]
[1769365485225,0.30448486,87669.0,87648.0,0.18810874]
[1769365485435,0.19115148,87669.0,87648.0,0.18810874]
[1769365486174,0.01140523,87679.0,87652.0,1.09796918]
[1769365486377,0.19115148,87677.0,87653.0,0.18826606]
[1769365486578,0.19115148,87675.0,87653.0,0.18826606]
[1769365486788,0.2025575,87673.0,87653.0,0.18826606]
[1769365487005,0.19115148,87671.0,87653.0,0.18826606]
[1769365487229,0.19115148,87669.0,87653.0,0.18826606]
[1769365487450,0.19115148,87669.0,87638.0,0.18826606]
[1769365487451,0.19115148,87664.0,87638.0,0.18826606]
[1769365487722,1.08721015,87658.0,87638.0,0.18826606]
[1769365487948,1.08721015,87658.0,87637.0,0.17532]
[1769365487949,1.08721015,87654.0,87637.0,0.17532]
[1769365488249,0.19115148,87653.0,87637.0,0.17532]
[1769365488807,0.19115148,87651.0,87634.0,0.00014205]
[1769365489188,0.19115148,87649.0,87634.0,0.00014205]
[1769365489821,0.19115148,87647.0,87634.0,0.00014205]
[1769365490023,1.03110129,87646.0,87634.0,0.00014205]
[1769365491202,0.19115148,87653.0,87634.0,0.00014205]
[1769365491375,1.14481533,87652.0,87634.0,0.00014205]
[1769365491597,0.19115148,87653.0,87634.0,0.00014205]
[1769365491598,1.03110129,87650.0,87634.0,0.00014205]
[1769365492385,0.11377557,87649.0,87634.0,0.00014205]
[1769365492795,1.14487686,87649.0,87634.0,0.00014205]
[1769365492994,0.11377557,87648.0,87634.0,0.00014205]
[1769365493193,0.1138395,87647.0,87634.0,0.18840811]
[1769365493436,1.03110129,87652.0,87634.0,0.18840811]
[1769365493733,1.03110129,87650.0,87634.0,0.18840811]
[1769365493876,0.1138395,87649.0,87634.0,0.18840811]
[1769365494097,1.14494079,87648.0,87634.0,0.18840811]
[1769365494299,1.14494079,87647.0,87634.0,0.18840811]
[1769365494543,1.03110129,87645.0,87634.0,0.00014205]
[1769365494732,0.1138395,87644.0,87634.0,0.00014205]
[1769365495444,0.1138395,87644.0,87635.0,1.09796918]
[1769365495647,1.08721015,87660.0,87638.0,0.01141057]
[1769365495825,0.11391716,87659.0,87642.0,0.18826606]
[1769365496072,0.11391716,87658.0,87644.0,0.18826606]
[1769365496276,0.11391716,87657.0,87644.0,0.18826606]
[1769365496483,1.08397529,87655.0,87636.0,1.09796918]
[1769365496699,1.08397529,87653.0,87635.0,0.18826606]
[1769365497117,1.08397529,87651.0,87635.0,0.18826606]
[1769365497324,0.11391716,87650.0,87635.0,0.18826606]
[1769365497535,0.11391716,87649.0,87635.0,0.18826606]
[1769365497747,0.11391716,87648.0,87635.0,0.18826606]
[1769365497959,0.11391716,87647.0,87635.0,0.18826606]
[1769365498181,0.11391716,87646.0,87635.0,0.18826606]
[1769365498393,0.19115148,87655.0,87634.0,0.00014205]
[1769365498394,1.08397529,87644.0,87634.0,0.00014205]
[1769365499367,1.19791223,87643.0,87634.0,0.00014205]
[1769365499579,1.08397529,87654.0,87634.0,0.00014205]
[1769365499782,1.08397529,87652.0,87633.0,1.09796918]
[1769365500101,0.11393614,87651.0,87641.0,0.18826606]
[1769365500303,0.11393614,87650.0,87641.0,0.18826606]
[1769365500510,0.11393614,87649.0,87630.0,0.3735979]
[1769365500714,0.11393614,87648.0,87632.0,1.09796918]
[1769365500916,0.11393614,87647.0,87633.0,0.18826606]
[1769365501079,1.08397529,87650.0,87635.0,0.18826606]
[1769365501080,0.11393614,87646.0,87635.0,0.18826606]
[1769365501280,1.08397529,87650.0,87635.0,0.18826606]
[1769365501674,0.1139347,87649.0,87630.0,0.3735979]
[1769365501845,0.00014202,87652.0,87622.0,0.18826606]
[1769365501846,0.19115148,87646.0,87622.0,0.18826606]
[1769365502078,1.08397529,87644.0,87623.0,1.09796918]
[1769365502284,0.1139347,87643.0,87625.0,0.18826606]
[1769365503042,0.1139347,87643.0,87627.0,0.18710235]
[1769365503403,1.25811927,87642.0,87622.0,0.001]
[1769365503612,0.01141083,87636.0,87622.0,0.001]
[1769365503736,0.18593244,87632.0,87622.0,0.001]
[1769365503943,1.25811927,87631.0,87622.0,0.001]
[1769365504170,1.07218683,87631.0,87622.0,0.00051296]
[1769365504376,1.07218683,87631.0,87615.0,0.0003183]
[1769365504377,1.07218683,87629.0,87615.0,0.0003183]
[1769365504734,0.18593244,87641.0,87617.0,0.18710235]
[1769365504933,1.0835974,87638.0,87617.0,0.18710235]
[1769365505059,0.18593244,87635.0,87617.0,0.18710235]
[1769365505253,1.07218683,87624.0,87609.0,0.04564]
[1769365505459,0.18593244,87623.0,87609.0,0.04564]
[1769365505925,0.01141096,87635.0,87610.0,0.3735979]
[1769365506129,0.11390588,87634.0,87610.0,0.56070025]
[1769365506330,0.1973447,87625.0,87599.0,0.18710235]
[1769365506646,0.18593244,87617.0,87593.0,0.18710235]
[1769365507223,0.18593244,87619.0,87593.0,1.28825909]
[1769365507412,0.18593244,87617.0,87593.0,1.28825909]
[1769365507610,0.18593244,87615.0,87598.0,0.01141578]
[1769365507911,0.18593244,87626.0,87600.0,1.10115674]
[1769365508151,0.11383165,87625.0,87603.0,1.10115674]
[1769365508493,0.11383165,87624.0,87611.0,1.28825909]
[1769365508630,0.11383165,87623.0,87612.0,0.18710235]
[1769365508823,0.11383165,87623.0,87603.0,0.01141513]
[1769365508824,0.01,87612.0,87596.0,0.0003183]
[1769365509283,0.01,87612.0,87600.0,0.3735979]
[1769365509487,0.18593244,87620.0,87601.0,0.18710235]
[1769365509735,0.11374513,87619.0,87601.0,0.18710235]
[1769365509972,0.11374513,87619.0,87602.0,0.18710235]
[1769365510101,0.11374513,87618.0,87602.0,0.18710235]
[1769365510303,0.11374513,87617.0,87609.0,1.10115674]
[1769365510530,0.11374513,87616.0,87610.0,0.18710235]
[1769365510728,0.00014197,87634.0,87613.0,1.10115674]
[1769365510939,0.18593244,87628.0,87594.0,0.0570963]
[1769365511117,0.01,87613.0,87597.0,0.18710235]
[1769365511714,0.19593244,87613.0,87594.0,0.04568]
[1769365513610,0.19593244,87613.0,87596.0,0.0003183]
[1769365515395,0.18289242,87623.0,87603.0,1.11790438]
[1769365515569,0.09069428,87632.0,87604.0,0.17637872]
[1769365515570,0.18289242,87627.0,87604.0,0.17637872]
[1769365515794,0.18289242,87627.0,87605.0,1.10648925]
[1769365516145,0.26605428,87633.0,87604.0,0.17637872]
[1769365516146,0.18289242,87633.0,87607.0,1.10648925]
[1769365516349,0.18289242,87632.0,87608.0,0.17637872]
[1769365517230,0.10287757,87634.0,87608.0,0.17637872]
[1769365517425,0.19430429,87628.0,87600.0,1.6564212]
[1769365517625,0.18289242,87627.0,87601.0,0.17637872]
[1769365517850,0.13651625,87634.0,87601.0,0.17637872]
[1769365517851,0.01141278,87621.0,87601.0,0.17637872]
[1769365517989,0.01141278,87621.0,87596.0,0.0003183]
[1769365517990,0.18289242,87620.0,87596.0,0.12819189]
[1769365518195,0.18289242,87620.0,87600.0,0.17637872]
[1769365518396,0.18289242,87620.0,87601.0,0.17637872]
[1769365518822,0.18289242,87629.0,87602.0,1.10648925]
[1769365519028,0.18289242,87629.0,87604.0,1.10648925]
[1769365519240,0.18289242,87629.0,87607.0,0.17637872]
[1769365519613,0.19430416,87629.0,87607.0,0.17637872]
[1769365520327,0.18289242,87629.0,87607.0,0.17637872]
[1769365520530,0.19430416,87629.0,87607.0,0.17637872]
[1769365520755,0.19430481,87624.0,87607.0,0.17637872]
[1769365520918,0.18289242,87624.0,87607.0,0.17637872]
[1769365521121,0.05706264,87623.0,87601.0,0.17637872]
[1769365521322,0.18289242,87620.0,87601.0,0.17637872]
[1769365521972,0.19430533,87620.0,87601.0,0.17637872]
[1769365522196,0.02627809,87619.0,87596.0,0.0003183]
[1769365522353,0.18289242,87614.0,87596.0,0.0003183]
[1769365522561,0.11368298,87613.0,87596.0,0.0003183]
[1769365522768,0.18289242,87612.0,87596.0,0.0003183]
[1769365522969,0.18289242,87610.0,87596.0,0.0003183]
[1769365523168,0.11368298,87609.0,87596.0,0.0003183]
[1769365523372,0.11368298,87608.0,87596.0,0.0003183]
[1769365523893,0.18289242,87609.0,87596.0,0.0003183]
[1769365524096,0.18289242,87607.0,87596.0,0.0003183]
[1769365524668,0.18289242,87619.0,87596.0,0.0003183]
[1769365524898,0.18289242,87617.0,87596.0,0.0003183]
[1769365525093,0.18289242,87615.0,87596.0,0.0003183]
[1769365525299,0.18289242,87613.0,87596.0,0.00079087]
[1769365525500,0.11369571,87612.0,87596.0,0.00079087]
[1769365525706,0.29658813,87611.0,87596.0,0.00079087]
[1769365525942,0.11369571,87610.0,87596.0,0.00079087]
[1769365526142,0.11369571,87609.0,87596.0,0.00079087]
[1769365526350,0.11369571,87608.0,87596.0,0.00079087]
[1769365526557,0.10369571,87607.0,87597.0,0.17637872]
[1769365526766,0.18289242,87618.0,87597.0,0.17637872]
[1769365526965,0.18289242,87618.0,87599.0,1.28286797]
[1769365527179,0.09069428,87623.0,87608.0,0.37355323]
[1769365527385,0.09069428,87624.0,87606.0,0.17637872]
[1769365527795,0.09069428,87624.0,87601.0,0.13928898]
[1769365527796,0.09069428,87626.0,87607.0,1.28286797]
[1769365527999,0.09069428,87624.0,87607.0,1.28286797]
[1769365528207,0.09069428,87622.0,87610.0,0.37355323]
[1769365528615,0.09069428,87623.0,87610.0,0.37355323]
[1769365529235,0.09069428,87622.0,87610.0,0.37355323]
[1769365529695,0.09069428,87622.0,87611.0,0.17637872]
[1769365530482,0.09069428,87624.0,87612.0,0.17637872]
[1769365531311,0.09069428,87623.0,87612.0,0.17637872]
[1769365532339,0.09069428,87622.0,87612.0,0.17637872]
[1769365532551,0.09069428,87626.0,87612.0,0.06208837]
[1769365532760,0.09069428,87626.0,87610.0,0.37355323]
[1769365532965,0.09069428,87626.0,87607.0,0.30425231]
[1769365533383,0.09069428,87623.0,87607.0,0.17637872]
[1769365533791,0.09069428,87622.0,87607.0,0.17637872]
[1769365534200,0.09069428,87621.0,87607.0,0.17637872]
[1769365534621,0.17627227,87622.0,87601.0,0.13928898]
[1769365534846,0.17627227,87622.0,87603.0,1.10041141]
[1769365535052,0.17627227,87622.0,87605.0,0.17313746]
[1769365535252,0.09069428,87622.0,87606.0,0.17313746]
[1769365535892,0.09069428,87621.0,87607.0,0.17313746]
[1769365536329,0.09069428,87621.0,87608.0,0.17313746]
[1769365536529,0.09069428,87622.0,87608.0,0.17313746]
[1769365537357,0.09069428,87623.0,87608.0,1.11182589]
[1769365537690,0.09069428,87624.0,87611.0,0.17313746]
[1769365538441,0.13604142,87633.0,87610.0,1.10041141]
[1769365538442,0.13604142,87633.0,87617.0,0.17313746]
[1769365538646,0.37355323,87670.0,87617.0,0.17313746]
[1769365538647,0.11414477,87632.0,87621.0,0.18455024]
[1769365538841,0.11414477,87631.0,87625.0,0.17313746]
[1769365539049,0.11414477,87631.0,87621.0,0.01141278]
[1769365539050,0.17627227,87646.0,87626.0,1.27354887]
[1769365539646,0.17645897,87652.0,87629.0,1.228285]
[1769365539870,0.17645897,87652.0,87632.0,1.10041141]
[1769365540075,0.17655622,87652.0,87625.0,1.10041141]
[1769365540294,0.17655622,87652.0,87625.0,1.27354887]
[1769365540951,0.17655622,87652.0,87629.0,0.12787359]
[1769365541373,0.17655622,87652.0,87630.0,1.27354887]
[1769365541593,0.17655622,87652.0,87633.0,0.17313746]
[1769365541805,0.00028395,87652.0,87641.0,0.17313746]
[1769365542233,0.00028395,87652.0,87610.0,1.10041141]
[1769365542448,0.17627227,87640.0,87623.0,0.17536]
[1769365543088,0.18768258,87640.0,87623.0,0.17536]
[1769365543318,0.17627227,87640.0,87623.0,0.17536]
[1769365543559,0.17627227,87640.0,87610.0,0.37355323]
[1769365543775,0.17627227,87640.0,87624.0,0.04568]
[1769365545021,0.17627227,87640.0,87625.0,1.10041141]
[1769365545429,0.17033533,87640.0,87625.0,1.10041141]
[1769365545566,0.17033533,87640.0,87624.0,0.21881746]
[1769365548937,0.17033533,87640.0,87624.0,1.31922887]
[1769365549696,0.17033533,87640.0,87625.0,0.17536]
[1769365550117,0.17627227,87651.0,87631.0,1.10041141]
[1769365550269,0.17627227,87651.0,87633.0,1.10041141]
[1769365550690,0.2447,87667.0,87633.0,1.10041141]
[1769365550691,0.17627227,87650.0,87633.0,1.10041141]
[1769365550885,0.17627227,87647.0,87626.0,1.10041141]
[1769365551076,0.77310106,87644.0,87625.0,0.17536]
[1769365551275,0.17627227,87641.0,87630.0,0.12787359]
[1769365551477,0.94937333,87640.0,87630.0,0.12787359]
[1769365551680,0.01765562,87650.0,87621.0,0.12787359]
[1769365551681,0.77310106,87638.0,87621.0,0.12787359]
[1769365551866,0.17627227,87636.0,87631.0,0.00780911]
[1769365552066,0.17627227,87634.0,87631.0,0.00780911]
[1769365553814,0.17627227,87606.0,87565.0,0.05771753]
[1769365554137,0.17627227,87601.0,87577.0,0.98067801]
[1769365554274,0.17627227,87601.0,87580.0,0.12787359]
[1769365554468,0.17627227,87601.0,87581.0,1.10041141]
[1769365554737,0.17627227,87599.0,87581.0,1.10041141]
[1769365554965,0.11382321,87598.0,87581.0,1.22875757]
[1769365555375,0.11382321,87598.0,87584.0,1.10041141]
[1769365555531,0.17627227,87605.0,87585.0,1.27354887]
[1769365555748,0.11379466,87604.0,87586.0,0.17313746]